[Event "Early-Titled-Tuesday-Blitz-March-26-2024"]
[Site "Chess.com"]
[Date "2024.03.26"]
[Round "1"]
[White "bazar-wokzal"]
[Black "Hikaru"]
[Result "0-1"]
[WhiteElo "2559"]
[BlackElo "3273"]
[TimeControl "180+1"]
[EndTime "8:05:54 PDT"]
[Termination "Hikaru won by resignation"]

1. e4 {[%clk 0:03:00.9]} 1... a6 {[%clk 0:02:59.1]} 2. d4 {[%clk 0:03:00.6]}
2... e6 {[%clk 0:02:59.5]} 3. Nf3 {[%clk 0:03:00.8]} 3... d5 {[%clk 0:03:00.1]}
4. e5 {[%clk 0:03:00.4]} 4... c5 {[%clk 0:02:59.9]} 5. c3 {[%clk 0:03:00.4]}
5... Bd7 {[%clk 0:03:00.6]} 6. a3 {[%clk 0:02:57.7]} 6... Bb5 {[%clk 0:03:00.3]}
7. c4 {[%clk 0:02:57.9]} 7... Bxc4 {[%clk 0:02:57.7]} 8. Bxc4 {[%clk 0:02:57.5]}
8... dxc4 {[%clk 0:02:58]} 9. O-O {[%clk 0:02:50.7]} 9... Nc6 {[%clk 0:02:54.5]}
10. Be3 {[%clk 0:02:48.8]} 10... cxd4 {[%clk 0:02:50.1]} 11. Bxd4 {[%clk
0:02:47]} 11... Nge7 {[%clk 0:02:49.2]} 12. Nc3 {[%clk 0:02:43.8]} 12... Nf5
{[%clk 0:02:48.3]} 13. Ne2 {[%clk 0:02:43.7]} 13... Rc8 {[%clk 0:02:43.7]} 14.
a4 {[%clk 0:02:38.9]} 14... Ncxd4 {[%clk 0:02:40.6]} 15. Nexd4 {[%clk
0:02:37.7]} 15... Nxd4 {[%clk 0:02:40.4]} 16. Qxd4 {[%clk 0:02:35]} 16... Qxd4
{[%clk 0:02:40]} 17. Nxd4 {[%clk 0:02:35.4]} 17... Bc5 {[%clk 0:02:40.9]} 18.
Rfd1 {[%clk 0:02:29.5]} 18... Ke7 {[%clk 0:02:32.8]} 19. Rac1 {[%clk 0:02:17.8]}
19... Rhd8 {[%clk 0:02:32.3]} 20. Nc2 {[%clk 0:02:11]} 20... Rd5 {[%clk
0:02:22.4]} 21. Na3 {[%clk 0:01:49.9]} 21... Rxd1+ {[%clk 0:02:15.6]} 22. Rxd1
{[%clk 0:01:49.9]} 22... c3 {[%clk 0:02:13]} 23. Nc4 {[%clk 0:01:48]} 23...
Bxf2+ {[%clk 0:02:05.3]} 24. Kxf2 {[%clk 0:01:47.5]} 24... Rxc4 {[%clk
0:02:06.1]} 25. bxc3 {[%clk 0:01:48]} 25... Rxa4 {[%clk 0:02:03]} 26. Ke3 {[%clk
0:01:47.1]} 26... Ra5 {[%clk 0:01:58.5]} 27. Ke4 {[%clk 0:01:46.2]} 27... Rc5
{[%clk 0:01:56.2]} 28. Rd3 {[%clk 0:01:43.9]} 28... b5 {[%clk 0:01:54.8]} 29.
Rh3 {[%clk 0:01:41.2]} 29... h6 {[%clk 0:01:52.4]} 30. Rg3 {[%clk 0:01:41.4]}
30... g6 {[%clk 0:01:52.9]} 31. Rh3 {[%clk 0:01:39.8]} 31... h5 {[%clk
0:01:53.2]} 32. Rf3 {[%clk 0:01:38.2]} 32... a5 {[%clk 0:01:53.3]} 33. Kd4
{[%clk 0:01:37.1]} 33... Rd5+ {[%clk 0:01:51.3]} 34. Ke4 {[%clk 0:01:37.4]}
34... a4 {[%clk 0:01:51.5]} 35. c4 {[%clk 0:01:35.6]} 35... Rc5 {[%clk
0:01:48.5]} 36. cxb5 {[%clk 0:01:35]} 36... Rxb5 {[%clk 0:01:49.3]} 37. Ra3
{[%clk 0:01:29.4]} 37... Rb4+ {[%clk 0:01:46.7]} 38. Kd3 {[%clk 0:01:29.8]}
38... Kd7 {[%clk 0:01:38.7]} 39. Kc3 {[%clk 0:01:28.9]} 39... Rg4 {[%clk
0:01:38.2]} 40. g3 {[%clk 0:01:28.5]} 40... Re4 {[%clk 0:01:35.8]} 41. Kd3
{[%clk 0:01:28.3]} 41... Rxe5 {[%clk 0:01:35.6]} 42. Rxa4 {[%clk 0:01:28.5]}
42... Ke7 {[%clk 0:01:36.2]} 43. Ra7+ {[%clk 0:01:27.9]} 43... Kf6 {[%clk
0:01:36.7]} 44. Kd4 {[%clk 0:01:27.9]} 44... Re2 {[%clk 0:01:36.3]} 45. h4
{[%clk 0:01:24.9]} 45... e5+ {[%clk 0:01:34.2]} 46. Kd5 {[%clk 0:01:23.2]} 46...
Re3 {[%clk 0:01:34.3]} 47. Ra6+ {[%clk 0:01:21.8]} 47... Kg7 {[%clk 0:01:30.4]}
48. Ra3 {[%clk 0:01:20.2]} 48... Rxa3 {[%clk 0:00:49.8]} 0-1

[Event "Early-Titled-Tuesday-Blitz-March-26-2024"]
[Site "Chess.com"]
[Date "2024.03.26"]
[Round "1"]
[White "chucksterf10"]
[Black "Dr_Thomas_Quilter"]
[Result "1-0"]
[WhiteElo "2582"]
[BlackElo "2141"]
[TimeControl "180+1"]
[EndTime "8:05:58 PDT"]
[Termination "chucksterf10 won by resignation"]

1. Nf3 {[%clk 0:02:59.2]} 1... Nf6 {[%clk 0:02:57.4]} 2. e3 {[%clk 0:02:59.5]}
2... b6 {[%clk 0:02:55.2]} 3. b3 {[%clk 0:02:58.1]} 3... Bb7 {[%clk 0:02:55]} 4.
Bb2 {[%clk 0:02:59]} 4... c5 {[%clk 0:02:55.2]} 5. Be2 {[%clk 0:02:57.3]} 5...
e6 {[%clk 0:02:55.1]} 6. O-O {[%clk 0:02:57.8]} 6... Qc7 {[%clk 0:02:54.9]} 7.
h3 {[%clk 0:02:56.4]} 7... Be7 {[%clk 0:02:44.5]} 8. c4 {[%clk 0:02:55.5]} 8...
h5 {[%clk 0:02:34.4]} 9. Nc3 {[%clk 0:02:53.6]} 9... g5 {[%clk 0:02:33.3]} 10.
d4 {[%clk 0:02:38.8]} 10... g4 {[%clk 0:02:32.5]} 11. Nb5 {[%clk 0:02:38.7]}
11... Qc8 {[%clk 0:02:25.3]} 12. dxc5 {[%clk 0:02:38.2]} 12... gxf3 {[%clk
0:01:49.6]} 13. Bxf3 {[%clk 0:02:37.6]} 13... Na6 {[%clk 0:00:50.8]} 14. Bxf6
{[%clk 0:02:35.7]} 14... Rg8 {[%clk 0:00:50.7]} 15. Nd6+ {[%clk 0:02:34.8]}
15... Bxd6 {[%clk 0:00:49.9]} 16. Qxd6 {[%clk 0:02:35.7]} 16... Qxc5 {[%clk
0:00:50.3]} 17. Qxc5 {[%clk 0:02:16]} 17... Nxc5 {[%clk 0:00:50.2]} 18. Bxb7
{[%clk 0:02:14.8]} 18... Nxb7 {[%clk 0:00:50.1]} 19. Rad1 {[%clk 0:02:13.1]}
19... Rg6 {[%clk 0:00:40.4]} 20. Bh4 {[%clk 0:02:07.7]} 20... f6 {[%clk
0:00:19.9]} 21. Rd4 {[%clk 0:02:07.7]} 21... Ke7 {[%clk 0:00:19.7]} 22. Rfd1
{[%clk 0:02:08.1]} 22... Rd8 {[%clk 0:00:19.4]} 23. e4 {[%clk 0:02:08.2]} 23...
Nc5 {[%clk 0:00:19.5]} 24. e5 {[%clk 0:02:07.8]} 24... a5 {[%clk 0:00:15.7]} 25.
Bxf6+ {[%clk 0:02:07.7]} 25... Rxf6 {[%clk 0:00:15.7]} 26. exf6+ {[%clk
0:02:08.2]} 26... Kxf6 {[%clk 0:00:15.9]} 27. Rd6 {[%clk 0:02:07.7]} 27... Ke7
{[%clk 0:00:13.5]} 28. Rxb6 {[%clk 0:02:07.8]} 28... Ra8 {[%clk 0:00:13.1]} 29.
a3 {[%clk 0:02:05.1]} 29... Ne4 {[%clk 0:00:12.6]} 30. Rb7 {[%clk 0:02:04.4]}
30... Nc5 {[%clk 0:00:11.1]} 31. Rc7 {[%clk 0:02:04.8]} 31... Nxb3 {[%clk
0:00:07.2]} 32. Rdxd7+ {[%clk 0:02:04.5]} 32... Kf6 {[%clk 0:00:07.1]} 33. f4
{[%clk 0:02:05.2]} 33... a4 {[%clk 0:00:07.3]} 34. Rf7+ {[%clk 0:02:05.2]} 34...
Kg6 {[%clk 0:00:07.3]} 35. g4 {[%clk 0:02:04.7]} 35... hxg4 {[%clk 0:00:07.3]}
36. hxg4 {[%clk 0:02:05.6]} 36... Rd8 {[%clk 0:00:07.2]} 37. Rg7+ {[%clk
0:02:05.8]} 37... Kh6 {[%clk 0:00:07.2]} 38. Rh7+ {[%clk 0:02:06.1]} 38... Kg6
{[%clk 0:00:07.6]} 39. Rcg7+ {[%clk 0:02:06.3]} 39... Kf6 {[%clk 0:00:07.9]} 40.
Rf7+ {[%clk 0:02:06.7]} 40... Kg6 {[%clk 0:00:08.1]} 41. Rhg7+ {[%clk
0:02:07.2]} 41... Kh6 {[%clk 0:00:08.4]} 42. Kg2 {[%clk 0:02:07.8]} 42... Nd4
{[%clk 0:00:06.2]} 43. Kh3 {[%clk 0:02:06.8]} 43... Rh8 {[%clk 0:00:05.6]} 44.
g5+ {[%clk 0:02:06]} 44... Kh5 {[%clk 0:00:06]} 45. c5 {[%clk 0:02:00.6]} 45...
Nf5 {[%clk 0:00:04.6]} 46. Rh7+ {[%clk 0:02:00.8]} 46... Rxh7 {[%clk 0:00:04.8]}
47. Rxh7+ {[%clk 0:02:01.7]} 47... Kg6 {[%clk 0:00:05.2]} 48. Rh6+ {[%clk
0:02:00.6]} 48... Nxh6 {[%clk 0:00:04.9]} 49. gxh6 {[%clk 0:02:01.5]} 49... Kxh6
{[%clk 0:00:05.6]} 50. c6 {[%clk 0:02:01.9]} 1-0

[Event "Early-Titled-Tuesday-Blitz-March-26-2024"]
[Site "Chess.com"]
[Date "2024.03.26"]
[Round "1"]
[White "Manukyan_Artak"]
[Black "rezamahdavi2008"]
[Result "0-1"]
[WhiteElo "2465"]
[BlackElo "2836"]
[TimeControl "180+1"]
[EndTime "8:06:00 PDT"]
[Termination "rezamahdavi2008 won on time"]

1. e4 {[%clk 0:02:32.2]} 1... c5 {[%clk 0:03:00]} 2. Nf3 {[%clk 0:02:32.2]} 2...
d6 {[%clk 0:03:00.3]} 3. Bb5+ {[%clk 0:02:31.6]} 3... Nd7 {[%clk 0:03:00.1]} 4.
O-O {[%clk 0:02:29.9]} 4... a6 {[%clk 0:02:58.1]} 5. Bd3 {[%clk 0:02:26]} 5...
Ngf6 {[%clk 0:02:50.5]} 6. Re1 {[%clk 0:02:25.1]} 6... g6 {[%clk 0:02:37.5]} 7.
c3 {[%clk 0:02:24.8]} 7... Bg7 {[%clk 0:02:37.3]} 8. Bc2 {[%clk 0:02:24]} 8...
O-O {[%clk 0:02:35]} 9. d4 {[%clk 0:02:24.5]} 9... cxd4 {[%clk 0:02:31]} 10.
cxd4 {[%clk 0:02:25.4]} 10... b5 {[%clk 0:02:31]} 11. e5 {[%clk 0:02:25]} 11...
Nd5 {[%clk 0:02:24.2]} 12. e6 {[%clk 0:02:20.2]} 12... fxe6 {[%clk 0:02:23.4]}
13. Ng5 {[%clk 0:02:20.4]} 13... N7f6 {[%clk 0:02:14.4]} 14. Nc3 {[%clk
0:01:57]} 14... Nxc3 {[%clk 0:02:07.3]} 15. bxc3 {[%clk 0:01:41.5]} 15... Nd5
{[%clk 0:02:07.6]} 16. Nxh7 {[%clk 0:01:40.1]} 16... Kxh7 {[%clk 0:02:03.9]} 17.
Qh5+ {[%clk 0:01:32.5]} 17... Kg8 {[%clk 0:02:00.3]} 18. Bxg6 {[%clk 0:01:31.3]}
18... Nf6 {[%clk 0:01:59.8]} 19. Qh4 {[%clk 0:01:30.7]} 19... Qc7 {[%clk
0:01:48]} 20. Re3 {[%clk 0:01:24.3]} 20... Rf7 {[%clk 0:01:30.7]} 21. Bxf7+
{[%clk 0:01:16.9]} 21... Kxf7 {[%clk 0:01:31.6]} 22. Rg3 {[%clk 0:01:17.2]}
22... Bd7 {[%clk 0:01:31.7]} 23. Bh6 {[%clk 0:01:15.8]} 23... Bxh6 {[%clk
0:01:29.2]} 24. Qxh6 {[%clk 0:01:08.4]} 24... Rg8 {[%clk 0:01:30]} 25. Rxg8
{[%clk 0:01:07.4]} 25... Kxg8 {[%clk 0:01:30.9]} 26. Rc1 {[%clk 0:01:01.3]}
26... Qc4 {[%clk 0:01:29.4]} 27. h4 {[%clk 0:00:48.3]} 27... Bc6 {[%clk
0:01:27.4]} 28. Re1 {[%clk 0:00:46]} 28... Kf7 {[%clk 0:01:22.1]} 29. Re3 {[%clk
0:00:29.3]} 29... Qxa2 {[%clk 0:01:22.4]} 30. Rg3 {[%clk 0:00:28.8]} 30... Qb1+
{[%clk 0:01:22.4]} 31. Kh2 {[%clk 0:00:19.2]} 31... Qh7 {[%clk 0:01:23.3]} 0-1

[Event "Early-Titled-Tuesday-Blitz-March-26-2024"]
[Site "Chess.com"]
[Date "2024.03.26"]
[Round "1"]
[White "dodorox"]
[Black "Ginger_GM"]
[Result "0-1"]
[WhiteElo "2111"]
[BlackElo "2578"]
[TimeControl "180+1"]
[EndTime "8:06:01 PDT"]
[Termination "Ginger_GM won on time"]

1. d4 {[%clk 0:02:53.2]} 1... e6 {[%clk 0:02:55.9]} 2. c4 {[%clk 0:02:53.5]}
2... b6 {[%clk 0:02:54.2]} 3. Nc3 {[%clk 0:02:53.1]} 3... Bb4 {[%clk 0:02:52.3]}
4. Bd2 {[%clk 0:02:51.5]} 4... Bb7 {[%clk 0:02:50.9]} 5. e3 {[%clk 0:02:52]}
5... f5 {[%clk 0:02:50.1]} 6. Nf3 {[%clk 0:02:49.2]} 6... Nf6 {[%clk 0:02:49.2]}
7. Bd3 {[%clk 0:02:45.6]} 7... O-O {[%clk 0:02:47.9]} 8. a3 {[%clk 0:02:42.2]}
8... Bxc3 {[%clk 0:02:47.5]} 9. Bxc3 {[%clk 0:02:43.1]} 9... Ne4 {[%clk
0:02:47.2]} 10. Rc1 {[%clk 0:02:42.2]} 10... d6 {[%clk 0:02:43.1]} 11. O-O
{[%clk 0:02:27.9]} 11... Rf6 {[%clk 0:02:42.7]} 12. Nd2 {[%clk 0:02:23.2]} 12...
Rh6 {[%clk 0:02:37.8]} 13. Nxe4 {[%clk 0:02:03.8]} 13... fxe4 {[%clk 0:02:36.1]}
14. Be2 {[%clk 0:02:02.5]} 14... Qh4 {[%clk 0:02:35.8]} 15. h3 {[%clk
0:02:00.1]} 15... Nd7 {[%clk 0:02:27.9]} 16. Be1 {[%clk 0:01:46.1]} 16... Qg5
{[%clk 0:02:20.5]} 17. Kh2 {[%clk 0:01:35.5]} 17... Rf8 {[%clk 0:02:17.5]} 18.
Qd2 {[%clk 0:01:27]} 18... Rf3 {[%clk 0:01:52.5]} 19. Rh1 {[%clk 0:00:35.7]}
19... Rg6 {[%clk 0:01:36.6]} 20. Bxf3 {[%clk 0:00:25.8]} 20... exf3 {[%clk
0:01:36.4]} 21. g3 {[%clk 0:00:23.8]} 21... Nf6 {[%clk 0:01:31.1]} 22. Qc2
{[%clk 0:00:07.6]} 22... Ne4 {[%clk 0:01:27.7]} 23. Qd3 {[%clk 0:00:06.2]} 23...
Rh6 {[%clk 0:01:21.7]} 24. Kg1 {[%clk 0:00:04]} 24... Qf5 {[%clk 0:01:12]} 25.
h4 {[%clk 0:00:03.5]} 25... g5 {[%clk 0:01:10.4]} 26. hxg5 {[%clk 0:00:02.1]}
26... Rxh1+ {[%clk 0:01:09.6]} 0-1

[Event "Early-Titled-Tuesday-Blitz-March-26-2024"]
[Site "Chess.com"]
[Date "2024.03.26"]
[Round "1"]
[White "Zavgorodniy_Sergiy"]
[Black "HanSchut"]
[Result "1-0"]
[WhiteElo "2620"]
[BlackElo "2268"]
[TimeControl "180+1"]
[EndTime "8:06:13 PDT"]
[Termination "Zavgorodniy_Sergiy won by resignation"]

1. d4 {[%clk 0:02:57.6]} 1... Nf6 {[%clk 0:02:59.2]} 2. c4 {[%clk 0:02:57.5]}
2... g6 {[%clk 0:02:59.5]} 3. Nc3 {[%clk 0:02:56.4]} 3... d5 {[%clk 0:02:59.6]}
4. cxd5 {[%clk 0:02:55.9]} 4... Nxd5 {[%clk 0:03:00.5]} 5. e4 {[%clk 0:02:55.9]}
5... Nxc3 {[%clk 0:03:01.2]} 6. bxc3 {[%clk 0:02:56.5]} 6... Bg7 {[%clk
0:03:01.8]} 7. Nf3 {[%clk 0:02:56.6]} 7... c5 {[%clk 0:03:02.5]} 8. Be3 {[%clk
0:02:56.7]} 8... Qa5 {[%clk 0:03:01.2]} 9. Qd2 {[%clk 0:02:56.4]} 9... Nc6
{[%clk 0:03:00.6]} 10. Rc1 {[%clk 0:02:56]} 10... cxd4 {[%clk 0:03:00.2]} 11.
cxd4 {[%clk 0:02:56.9]} 11... Qxd2+ {[%clk 0:03:00.4]} 12. Kxd2 {[%clk 0:02:57]}
12... O-O {[%clk 0:03:01.1]} 13. d5 {[%clk 0:02:56.7]} 13... Rd8 {[%clk
0:03:01.1]} 14. Ke1 {[%clk 0:02:56.6]} 14... Na5 {[%clk 0:02:31.4]} 15. Bg5
{[%clk 0:02:09.7]} 15... Kf8 {[%clk 0:02:27.8]} 16. Rc7 {[%clk 0:02:05.2]} 16...
Rd7 {[%clk 0:02:17.2]} 17. Rxd7 {[%clk 0:02:03]} 17... Bxd7 {[%clk 0:02:17.3]}
18. Bd3 {[%clk 0:02:03.3]} 18... Rc8 {[%clk 0:02:05.7]} 19. Ke2 {[%clk
0:02:02.5]} 19... Nc4 {[%clk 0:01:55.6]} 20. Rc1 {[%clk 0:01:59.3]} 20... b5
{[%clk 0:01:55.8]} 21. a4 {[%clk 0:01:57.9]} 21... a6 {[%clk 0:01:55.7]} 22.
axb5 {[%clk 0:01:57.7]} 22... axb5 {[%clk 0:01:56.6]} 23. Nd2 {[%clk 0:01:50.6]}
23... Nxd2 {[%clk 0:01:37.2]} 24. Rxc8+ {[%clk 0:01:50.1]} 24... Bxc8 {[%clk
0:01:38.1]} 25. Bxd2 {[%clk 0:01:50]} 25... Bd7 {[%clk 0:01:38.4]} 26. Bb4
{[%clk 0:01:49.4]} 26... Ke8 {[%clk 0:01:37.9]} 27. Ke3 {[%clk 0:01:47.4]} 27...
e6 {[%clk 0:01:33.1]} 28. dxe6 {[%clk 0:01:42.4]} 28... fxe6 {[%clk 0:01:33.2]}
29. f4 {[%clk 0:01:42.1]} 29... Bb2 {[%clk 0:01:27.9]} 30. g4 {[%clk 0:01:37.3]}
30... Bc6 {[%clk 0:01:21.3]} 31. h4 {[%clk 0:01:34.7]} 31... Kf7 {[%clk
0:01:19.7]} 32. e5 {[%clk 0:01:28.1]} 32... Bc1+ {[%clk 0:01:13.4]} 33. Bd2
{[%clk 0:01:26.4]} 33... Bxd2+ {[%clk 0:01:07.3]} 34. Kxd2 {[%clk 0:01:27.3]}
34... Ke7 {[%clk 0:01:07.4]} 35. Kc3 {[%clk 0:01:23.6]} 35... Bf3 {[%clk
0:01:00]} 36. g5 {[%clk 0:01:22]} 36... Bc6 {[%clk 0:00:58.4]} 37. Kb4 {[%clk
0:01:21.8]} 37... Kd7 {[%clk 0:00:54.7]} 38. Bxb5 {[%clk 0:01:15.2]} 38... Kc7
{[%clk 0:00:55]} 39. Bc4 {[%clk 0:01:06.4]} 39... Bd7 {[%clk 0:00:52]} 40. Kc5
{[%clk 0:01:05.9]} 40... Bc8 {[%clk 0:00:52.2]} 41. Bb5 {[%clk 0:01:02.7]} 41...
Bb7 {[%clk 0:00:47.6]} 42. Be8 {[%clk 0:00:57.9]} 42... Kd8 {[%clk 0:00:40.6]}
43. Bf7 {[%clk 0:00:57.8]} 43... Ke7 {[%clk 0:00:41]} 44. Bg8 {[%clk 0:00:57.8]}
44... Kf8 {[%clk 0:00:40]} 45. Bxe6 {[%clk 0:00:57.2]} 1-0

[Event "Early-Titled-Tuesday-Blitz-March-26-2024"]
[Site "Chess.com"]
[Date "2024.03.26"]
[Round "1"]
[White "balack95"]
[Black "Kiborg95"]
[Result "0-1"]
[WhiteElo "2426"]
[BlackElo "2769"]
[TimeControl "180+1"]
[EndTime "8:06:14 PDT"]
[Termination "Kiborg95 won by resignation"]

1. d4 {[%clk 0:02:59.2]} 1... d6 {[%clk 0:02:59.5]} 2. Nf3 {[%clk 0:02:56.5]}
2... Nf6 {[%clk 0:02:59.5]} 3. c4 {[%clk 0:02:54.6]} 3... Nbd7 {[%clk
0:02:57.6]} 4. Nc3 {[%clk 0:02:54.4]} 4... e5 {[%clk 0:02:58.3]} 5. Bg5 {[%clk
0:02:54.5]} 5... h6 {[%clk 0:02:57]} 6. Bh4 {[%clk 0:02:54.5]} 6... g5 {[%clk
0:02:56.8]} 7. Bg3 {[%clk 0:02:53.8]} 7... Nh5 {[%clk 0:02:57.4]} 8. dxe5 {[%clk
0:02:53.4]} 8... Nxg3 {[%clk 0:02:52.5]} 9. hxg3 {[%clk 0:02:53.3]} 9... g4
{[%clk 0:02:53]} 10. e6 {[%clk 0:02:52.6]} 10... fxe6 {[%clk 0:02:50.3]} 11. Nh4
{[%clk 0:02:46]} 11... Ne5 {[%clk 0:02:44]} 12. e3 {[%clk 0:02:40.8]} 12... Bd7
{[%clk 0:02:38.9]} 13. Qc2 {[%clk 0:02:35]} 13... Qf6 {[%clk 0:02:32.4]} 14. c5
{[%clk 0:02:29.5]} 14... d5 {[%clk 0:02:30.1]} 15. O-O-O {[%clk 0:02:25.5]}
15... O-O-O {[%clk 0:02:26.8]} 16. Kb1 {[%clk 0:02:12.2]} 16... Be7 {[%clk
0:02:15]} 17. Bb5 {[%clk 0:01:45.8]} 17... c6 {[%clk 0:02:13.8]} 18. Bd3 {[%clk
0:01:45]} 18... Nxd3 {[%clk 0:01:56.5]} 19. Rxd3 {[%clk 0:01:43.8]} 19... e5
{[%clk 0:01:50.4]} 20. Rd2 {[%clk 0:01:42.6]} 20... Rhg8 {[%clk 0:01:45]} 21.
Ka1 {[%clk 0:01:39]} 21... Rdf8 {[%clk 0:01:43.2]} 22. e4 {[%clk 0:01:38.7]}
22... d4 {[%clk 0:01:42]} 23. Nd1 {[%clk 0:01:38]} 23... Be6 {[%clk 0:01:37.5]}
24. Re1 {[%clk 0:01:36.2]} 24... Qf7 {[%clk 0:01:36.1]} 25. b3 {[%clk
0:01:35.9]} 25... Bxh4 {[%clk 0:01:30.9]} 26. gxh4 {[%clk 0:01:36]} 26... g3
{[%clk 0:01:31.8]} 27. f3 {[%clk 0:01:32.8]} 27... Qh5 {[%clk 0:01:32]} 28. Rh1
{[%clk 0:01:32.7]} 28... Rf4 {[%clk 0:01:32.4]} 29. Nb2 {[%clk 0:01:29.6]} 29...
Rxh4 {[%clk 0:01:31.9]} 30. Rxh4 {[%clk 0:01:29.2]} 30... Qxh4 {[%clk
0:01:32.8]} 31. Nd3 {[%clk 0:01:29.2]} 31... Qg5 {[%clk 0:01:26.5]} 32. Rd1
{[%clk 0:01:28.8]} 32... h5 {[%clk 0:01:26.8]} 33. Qc1 {[%clk 0:01:28.6]} 33...
h4 {[%clk 0:01:24.2]} 34. Qxg5 {[%clk 0:01:25.3]} 34... Rxg5 {[%clk 0:01:25.1]}
35. Rh1 {[%clk 0:01:25.8]} 35... h3 {[%clk 0:01:25.1]} 36. gxh3 {[%clk
0:01:20.4]} 36... g2 {[%clk 0:01:25.1]} 37. Rg1 {[%clk 0:01:21.1]} 37... Bxh3
{[%clk 0:01:25.3]} 38. f4 {[%clk 0:01:19.2]} 38... Rg3 {[%clk 0:01:16.9]} 39.
Nxe5 {[%clk 0:01:07.1]} 39... Re3 {[%clk 0:01:16.6]} 40. Nc4 {[%clk 0:00:59.9]}
40... Rf3 {[%clk 0:01:13.6]} 41. Nd2 {[%clk 0:01:00.1]} 41... Rf2 {[%clk
0:01:10.2]} 42. Rxg2 {[%clk 0:00:57.3]} 42... Bxg2 {[%clk 0:01:10]} 43. Nc4
{[%clk 0:00:56.1]} 43... Rxf4 {[%clk 0:01:07.8]} 44. e5 {[%clk 0:00:56]} 44...
Bd5 {[%clk 0:01:07.7]} 45. Nd6+ {[%clk 0:00:56.3]} 45... Kd7 {[%clk 0:01:08.1]}
46. Nxb7 {[%clk 0:00:56.3]} 46... Rf2 {[%clk 0:01:05.7]} 47. Nd6 {[%clk
0:00:54.1]} 47... Ke6 {[%clk 0:01:06]} 48. Nc8 {[%clk 0:00:52.2]} 48... a5
{[%clk 0:01:05.4]} 49. Nd6 {[%clk 0:00:50.3]} 49... d3 {[%clk 0:01:05.3]} 50.
Kb1 {[%clk 0:00:49.9]} 50... Rf1+ {[%clk 0:01:05.9]} 51. Kb2 {[%clk 0:00:50.1]}
51... d2 {[%clk 0:01:06.8]} 52. Ka3 {[%clk 0:00:49.5]} 52... d1=Q {[%clk
0:01:05.4]} 0-1

[Event "Early-Titled-Tuesday-Blitz-March-26-2024"]
[Site "Chess.com"]
[Date "2024.03.26"]
[Round "1"]
[White "Polish_fighter3000"]
[Black "OPQRC"]
[Result "1-0"]
[WhiteElo "3111"]
[BlackElo "2554"]
[TimeControl "180+1"]
[EndTime "8:06:15 PDT"]
[Termination "Polish_fighter3000 won by resignation"]

1. e4 {[%clk 0:03:00.3]} 1... c5 {[%clk 0:02:59.5]} 2. Nf3 {[%clk 0:03:00.6]}
2... d6 {[%clk 0:02:59.1]} 3. d4 {[%clk 0:03:01.2]} 3... cxd4 {[%clk 0:03:00]}
4. Nxd4 {[%clk 0:03:01.8]} 4... Nf6 {[%clk 0:03:00.3]} 5. Nc3 {[%clk 0:03:02.4]}
5... g6 {[%clk 0:03:00.3]} 6. Be3 {[%clk 0:03:02.2]} 6... Nc6 {[%clk 0:02:57.3]}
7. f3 {[%clk 0:02:56.3]} 7... h5 {[%clk 0:02:57.1]} 8. Bc4 {[%clk 0:02:51.1]}
8... Bd7 {[%clk 0:02:53.9]} 9. Bb3 {[%clk 0:02:50.5]} 9... Rc8 {[%clk
0:02:52.2]} 10. Qd2 {[%clk 0:02:47.7]} 10... Nxd4 {[%clk 0:02:51.4]} 11. Bxd4
{[%clk 0:02:48.6]} 11... Bh6 {[%clk 0:02:51]} 12. Qf2 {[%clk 0:02:43.6]} 12...
Qa5 {[%clk 0:02:47.8]} 13. O-O {[%clk 0:02:29.3]} 13... O-O {[%clk 0:02:26.3]}
14. Bxa7 {[%clk 0:02:25.6]} 14... Bf4 {[%clk 0:02:12.7]} 15. Bb6 {[%clk
0:02:10]} 15... Qg5 {[%clk 0:02:12]} 16. Ne2 {[%clk 0:01:58.4]} 16... Bb5 {[%clk
0:01:49.9]} 17. Nxf4 {[%clk 0:01:55.1]} 17... Qxf4 {[%clk 0:01:41.9]} 18. Be3
{[%clk 0:01:46.3]} 18... Qe5 {[%clk 0:01:39.3]} 19. Bd4 {[%clk 0:01:46.5]} 19...
Qg5 {[%clk 0:01:36.2]} 20. Rfe1 {[%clk 0:01:46.4]} 20... Bc4 {[%clk 0:01:32]}
21. e5 {[%clk 0:01:31.2]} 21... Nd5 {[%clk 0:01:17.9]} 22. exd6 {[%clk
0:01:29.3]} 22... Nf4 {[%clk 0:01:15.8]} 23. h4 {[%clk 0:01:12.6]} 23... Nh3+
{[%clk 0:00:44.2]} 24. Kh2 {[%clk 0:01:11.3]} 24... Qf4+ {[%clk 0:00:44.3]} 25.
Kxh3 {[%clk 0:01:10.1]} 25... Bb5 {[%clk 0:00:31.2]} 26. Qg3 {[%clk 0:00:56.5]}
26... Qxd4 {[%clk 0:00:24]} 27. Qxg6+ {[%clk 0:00:53]} 27... Kh8 {[%clk
0:00:23.9]} 28. Qxh5+ {[%clk 0:00:53.1]} 28... Kg8 {[%clk 0:00:23.4]} 29. Qxb5
{[%clk 0:00:49.4]} 29... Rc5 {[%clk 0:00:20.1]} 30. Qd3 {[%clk 0:00:49.5]} 1-0

[Event "Early-Titled-Tuesday-Blitz-March-26-2024"]
[Site "Chess.com"]
[Date "2024.03.26"]
[Round "1"]
[White "ahkashefi2800"]
[Black "Dewarfd"]
[Result "1-0"]
[WhiteElo "2591"]
[BlackElo "2162"]
[TimeControl "180+1"]
[EndTime "8:06:15 PDT"]
[Termination "ahkashefi2800 won on time"]

1. d4 {[%clk 0:02:52.4]} 1... Nf6 {[%clk 0:02:58]} 2. Nf3 {[%clk 0:02:44.4]}
2... g6 {[%clk 0:02:56.8]} 3. Bf4 {[%clk 0:02:40.8]} 3... Bg7 {[%clk 0:02:56.2]}
4. e3 {[%clk 0:02:37.2]} 4... O-O {[%clk 0:02:55]} 5. Nbd2 {[%clk 0:02:31.7]}
5... d5 {[%clk 0:02:54.4]} 6. c4 {[%clk 0:02:29.6]} 6... c6 {[%clk 0:02:33.7]}
7. Be2 {[%clk 0:02:28.3]} 7... Be6 {[%clk 0:02:32.9]} 8. c5 {[%clk 0:02:24.5]}
8... Bg4 {[%clk 0:02:30.7]} 9. O-O {[%clk 0:02:18.1]} 9... Nfd7 {[%clk
0:02:30.1]} 10. b4 {[%clk 0:02:16.8]} 10... e5 {[%clk 0:02:24.7]} 11. Nxe5
{[%clk 0:02:15.4]} 11... Bxe2 {[%clk 0:02:24.3]} 12. Qxe2 {[%clk 0:02:15.9]}
12... Nxe5 {[%clk 0:02:23.6]} 13. Bxe5 {[%clk 0:02:16.3]} 13... Bxe5 {[%clk
0:02:21.6]} 14. dxe5 {[%clk 0:02:16.7]} 14... Re8 {[%clk 0:02:13.4]} 15. f4
{[%clk 0:02:16.6]} 15... a5 {[%clk 0:02:07.8]} 16. a3 {[%clk 0:02:15.7]} 16...
b6 {[%clk 0:02:08]} 17. Rfd1 {[%clk 0:02:14.2]} 17... Nd7 {[%clk 0:01:50.6]} 18.
Rac1 {[%clk 0:02:01.6]} 18... axb4 {[%clk 0:01:49.1]} 19. axb4 {[%clk
0:02:01.2]} 19... bxc5 {[%clk 0:01:49.1]} 20. bxc5 {[%clk 0:02:01.6]} 20... Ra2
{[%clk 0:01:39.5]} 21. Qd3 {[%clk 0:01:54.1]} 21... Qa5 {[%clk 0:00:53.1]} 22.
Nb3 {[%clk 0:01:51]} 22... Qa3 {[%clk 0:00:47.3]} 23. Nd4 {[%clk 0:01:47.6]}
23... Qa4 {[%clk 0:00:41.5]} 24. Qc3 {[%clk 0:01:36.7]} 24... Rb8 {[%clk
0:00:33.1]} 25. Rb1 {[%clk 0:01:36.8]} 25... Rxb1 {[%clk 0:00:20.9]} 26. Rxb1
{[%clk 0:01:35.8]} 26... Ra3 {[%clk 0:00:20.6]} 27. Qb4 {[%clk 0:01:23.1]} 27...
Qxb4 {[%clk 0:00:17.8]} 28. Rxb4 {[%clk 0:01:23]} 28... Rxe3 {[%clk 0:00:17.9]}
29. Nxc6 {[%clk 0:01:22.2]} 29... Nxc5 {[%clk 0:00:17.2]} 30. Ne7+ {[%clk
0:01:22.5]} 30... Kg7 {[%clk 0:00:16.6]} 31. Rd4 {[%clk 0:01:14.7]} 31... Nd3
{[%clk 0:00:06.7]} 32. g3 {[%clk 0:01:13.5]} 32... Re1+ {[%clk 0:00:03.5]} 33.
Kg2 {[%clk 0:01:11.7]} 1-0